[Event "EYCC Girls-U18 2019"]
[Site "Bratislava"]
[Date "2019.08.04"]
[Round "3.12"]
[White "Grigoryan, Arpine"]
[Black "Gajcin, Marina"]
[Result "1/2-1/2"]
[ECO "B31"]
[WhiteElo "1996"]
[BlackElo "2267"]
[Annotator "NA"]
[PlyCount "179"]
[EventDate "2019.08.02"]
[EventType "swiss"]
[EventCountry "SVK"]
[SourceTitle "playchess.com"]
[Source "ChessBase"]
[SourceQuality "1"]
[TimeControl "40/5400+30:1800+30"]

1. e4 {[%emt 0:00:00]} c5 {[%emt 0:00:00]} 2. Nf3 {[%emt 0:00:00]} Nc6 {[%emt 0:00:00]} 3. Bb5 {[%emt 0:00:00]} g6 {[%emt 0:00:00]} 4. Bxc6 {[%emt 0:00:00]} bxc6 {[%emt 0:00:00]} 5. O-O {[%emt 0:06:15]} Bg7 {[%emt 0:00:00]} 6. e5 {[%emt 0:03:04]} f6 {[%emt 0:09:51]} 7. Qe2 {[%emt 0:09:04]} fxe5 {[%emt 0:11:17]} 8. Nxe5 {[%emt 0:00:15]} d6 {[%emt 0:01:00]} 9. Nf3 {[%emt 0:01:20]} Nf6 {[%emt 0:05:32]} 10. Re1 {[%emt 0:08:56]} O-O {[%emt 0:02:56]} 11. d4 {[%emt 0:12:22]} Bg4 {[%emt 0:05:42]} 12. dxc5 {[%emt 0:01:00]} Nd5 {[%emt 0:04:37]} 13. c4 {[%emt 0:05:14]} Bxf3 {[%emt 0:01:51]} 14. gxf3 {[%emt 0:00:18]} Nf4 {[%emt 0:01:30]} 15. Bxf4 {[%emt 0:04:42]} Rxf4 {[%emt 0:00:27]} 16. Qe6+ {[%emt 0:02:15]} Kh8 {[%emt 0:22:57]} 17. Nc3 {[%emt 0:02:27]} dxc5 {[%emt 0:12:14]} 18. Qxc6 {[%emt 0:05:56]} Bd4 {[%emt 0:07:05]} 19. Ne2 {[%emt 0:05:25]} Rc8 {[%emt 0:03:01]} 20. Qe6 {[%emt 0:01:05]} Rxf3 {[%emt 0:02:56]} 21. Nxd4 {[%emt 0:00:19]} cxd4 {[%emt 0:00:27]} 22. Rad1 {[%emt 0:01:54]} d3 {[%emt 0:00:36]} 23. Qe4 {[%emt 0:00:36]} Qf8 {[%emt 0:01:26]} 24. Qe5+ {[%emt 0:05:50]} Kg8 {[%emt 0:01:27]} 25. Qd5+ {[%emt 0:01:02]} Kg7 {[%emt 0:00:52]} 26. Qd4+ {[%emt 0:03:06]} Kg8 {[%emt 0:00:16]} 27. Rxd3 {[%emt 0:00:15]} Rxd3 {[%emt 0:01:53]} 28. Qxd3 {[%emt 0:01:30]} Rc5 {[%emt 0:01:09]} 29. b4 {[%emt 0:02:24]} Rg5+ {[%emt 0:00:08]} 30. Kf1 {[%emt 0:00:03]} Rf5 {[%emt 0:00:42]} 31. Qe3 {[%emt 0:00:10]} Qf7 {[%emt 0:00:38]} 32. Rc1 {[%emt 0:00:28]} Rf3 {[%emt 0:00:31]} 33. Qxa7 {[%emt 0:01:18]} Qf4 {[%emt 0:00:21]} 34. Rc2 {[%emt 0:00:24]} Qe4 {[%emt 0:01:11]} 35. Re2 {[%emt 0:00:21]} Qxc4 {[%emt 0:00:55]} 36. Qxe7 {[%emt 0:00:16]} Rf7 {[%emt 0:00:46]} 37. Qe8+ {[%emt 0:00:12]} Kg7 {[%emt 0:00:03]} 38. Qe5+ {[%emt 0:00:04]} Kg8 {[%emt 0:00:29]} 39. b5 {[%emt 0:03:04]} Rf5 {[%emt 0:00:39]} 40. Qe8+ {[%emt 0:00:00]} Kg7 {[%emt 0:00:00]} 41. Qe7+ {[%emt 0:01:26]} Kh6 {[%emt 0:10:33]} 42. Qe3+ {[%emt 0:01:12]} Kg7 {[%emt 0:01:26]} 43. b6 {[%emt 0:08:48]} Rb5 {[%emt 0:01:06]} 44. Qe7+ {[%emt 0:00:12]} Kh6 {[%emt 0:00:29]} 45. Qf8+ {[%emt 0:00:45]} Kh5 {[%emt 0:00:39]} 46. Qf3+ {[%emt 0:00:09]} Kh6 {[%emt 0:00:08]} 47. b7 {[%emt 0:02:21]} Rb1+ {[%emt 0:00:32]} 48. Kg2 {[%emt 0:04:03]} Rxb7 {[%emt 0:00:02]} 49. Re4 {[%emt 0:03:26]} Qf7 {[%emt 0:02:25]} 50. Rh4+ {[%emt 0:02:06]} Kg7 {[%emt 0:00:13]} 51. Qc3+ {[%emt 0:00:06]} Kg8 {[%emt 0:00:41]} 52. Rc4 {[%emt 0:08:10]} Qd5+ {[%emt 0:04:06]} 53. f3 {[%emt 0:00:05]} Re7 {[%emt 0:02:37]} 54. Kf2 {[%emt 0:01:46]} Qe6 {[%emt 0:04:12]} 55. Rc8+ {[%emt 0:05:44]} Kf7 {[%emt 0:00:01]} 56. Qc4 {[%emt 0:00:25]} Qxc4 {[%emt 0:00:37]} 57. Rxc4 {[%emt 0:00:04]} Ra7 {[%emt 0:03:13]} 58. a4 {[%emt 0:02:12]} Ke6 {[%emt 0:01:19]} 59. Ke3 {[%emt 0:01:20]} Kd5 {[%emt 0:01:05]} 60. Rb4 {[%emt 0:01:03]} Kc5 {[%emt 0:00:19]} 61. Re4 {[%emt 0:00:22]} Kb6 {[%emt 0:00:57]} 62. Kf4 {[%emt 0:01:40]} Rf7+ {[%emt 0:00:12]} 63. Kg4 {[%emt 0:00:14]} Rf5 {[%emt 0:02:33]} 64. f4 {[%emt 0:00:11]} Ra5 {[%emt 0:02:15]} 65. Re6+ {[%emt 0:00:15]} Kc7 {[%emt 0:00:10]} 66. Re7+ {[%emt 0:00:04]} Kd6 {[%emt 0:00:15]} 67. Rxh7 {[%emt 0:00:04]} Ke6 {[%emt 0:00:16]} 68. Rb7 {[%emt 0:00:44]} Rxa4 {[%emt 0:00:49]} 69. Kg5 {[%emt 0:00:09]} Ra2 {[%emt 0:00:36]} 70. Rb6+ {[%emt 0:00:53]} Kf7 {[%emt 0:00:16]} 71. Rf6+ {[%emt 0:00:21]} Ke7 {[%emt 0:00:06]} 72. Rxg6 {[%emt 0:00:32]} Rxh2 {[%emt 0:01:41]} 73. Ra6 {[%emt 0:00:15]} Rg2+ {[%emt 0:00:56]} 74. Kf5 {[%emt 0:00:07]} Rb2 {[%emt 0:00:14]} 75. Ra7+ {[%emt 0:00:07]} Kf8 {[%emt 0:00:08]} 76. Kg5 {[%emt 0:00:11]} Rb5+ {[%emt 0:00:33]} 77. f5 {[%emt 0:00:05]} Rb6 {[%emt 0:00:02]} 78. Rh7 {[%emt 0:01:13]} Ra6 {[%emt 0:00:47]} 79. Rb7 {[%emt 0:00:18]} Rc6 {[%emt 0:00:07]} 80. Ra7 {[%emt 0:00:37]} Rb6 {[%emt 0:00:05]} 81. Ra8+ {[%emt 0:00:03]} Kf7 {[%emt 0:00:22]} 82. Rd8 {[%emt 0:01:19]} Ra6 {[%emt 0:00:28]} 83. Rd7+ {[%emt 0:00:05]} Kf8 {[%emt 0:00:22]} 84. Kf4 {[%emt 0:00:11]} Ra4+ {[%emt 0:01:16]} 85. Ke5 {[%emt 0:00:04]} Ra5+ {[%emt 0:00:26]} 86. Ke6 {[%emt 0:00:04]} Ra6+ {[%emt 0:00:06]} 87. Rd6 {[%emt 0:00:03]} Rxd6+ {[%emt 0:00:15]} 88. Kxd6 {[%emt 0:00:03]} Kf7 {[%emt 0:00:06]} 89. Ke5 {[%emt 0:00:02]} Ke7 {[%emt 0:00:04]} 90. Ke4 1/2-1/2

[Event "EYCC Girls-U18 2019"]
[Site "Bratislava"]
[Date "2019.08.04"]
[Round "3.13"]
[White "Muetsch, Annmarie"]
[Black "Koridze, Lile"]
[Result "1-0"]
[ECO "B51"]
[WhiteElo "2266"]
[BlackElo "1950"]
[Annotator "NA"]
[PlyCount "58"]
[EventDate "2019.08.02"]
[EventType "swiss"]
[EventCountry "SVK"]
[SourceTitle "playchess.com"]
[Source "ChessBase"]
[SourceQuality "1"]
[TimeControl "40/5400+30:1800+30"]

1. e4 {[%emt 0:00:00]} c5 {[%emt 0:00:00]} 2. Nf3 {[%emt 0:00:00]} d6 {[%emt 0:00:00]} 3. Bb5+ {[%emt 0:00:00]} Nc6 {[%emt 0:00:00]} 4. O-O {[%emt 0:00:03]} Bd7 {[%emt 0:00:04]} 5. Re1 {[%emt 0:00:11]} a6 {[%emt 0:00:48]} 6. Bf1 {[%emt 0:00:06]} Nf6 {[%emt 0:00:47]} 7. c3 {[%emt 0:00:22]} Bg4 {[%emt 0:01:58]} 8. h3 {[%emt 0:00:12]} Bxf3 {[%emt 0:01:07]} 9. Qxf3 {[%emt 0:00:07]} g6 {[%emt 0:02:01]} 10. d3 Bg7 {[%emt 0:00:24]} 11. Be3 {[%emt 0:02:28]} O-O {[%emt 0:05:53]} 12. Nd2 {[%emt 0:00:17]} Nd7 {[%emt 0:00:50]} 13. Qd1 {[%emt 0:01:46]} b5 {[%emt 0:03:32]} 14. Nf3 {[%emt 0:00:51]} b4 {[%emt 0:06:32]} 15. Qa4 {[%emt 0:11:51]} Qc7 {[%emt 0:03:21]} 16. d4 {[%emt 0:03:32]} bxc3 {[%emt 0:12:19]} 17. bxc3 {[%emt 0:02:14]} Nb6 {[%emt 0:02:38]} 18. Qa3 {[%emt 0:06:23]} Nd7 {[%emt 0:12:55]} 19. Rab1 {[%emt 0:06:19]} Qa7 {[%emt 0:04:59]} 20. Qa4 {[%emt 0:04:23]} Rfc8 {[%emt 0:01:19]} 21. Rb3 {[%emt 0:07:40]} Rc7 {[%emt 0:14:01]} 22. Reb1 {[%emt 0:02:06]} Nd8 {[%emt 0:05:30]} 23. Bc4 {[%emt 0:06:25]} e6 24. d5 {[%emt 0:01:25]} e5 {[%emt 0:08:12]} 25. Qa5 {[%emt 0:00:59]} Nf6 {[%emt 0:03:13]} 26. Bd3 {[%emt 0:16:01]} Rcc8 {[%emt 0:02:33]} 27. Nd2 {[%emt 0:01:15]} Qd7 {[%emt 0:05:01]} 28. Nc4 {[%emt 0:03:20]} Ra7 {[%emt 0:00:34]} 29. Rb8 {[%emt 0:01:24]} Nb7 {[%emt 0:03:19]} 1-0

[Event "EYCC Girls-U18 2019"]
[Site "Bratislava"]
[Date "2019.08.04"]
[Round "3.14"]
[White "Sargsyan, Anna M."]
[Black "Belluire, Beatrice"]
[Result "1-0"]
[ECO "A46"]
[WhiteElo "2229"]
[BlackElo "1929"]
[Annotator "NA"]
[PlyCount "63"]
[EventDate "2019.08.02"]
[EventType "swiss"]
[EventCountry "SVK"]
[SourceTitle "playchess.com"]
[Source "ChessBase"]
[SourceQuality "1"]
[TimeControl "40/5400+30:1800+30"]

1. d4 {[%emt 0:00:00]} Nf6 {[%emt 0:00:00]} 2. Nf3 {[%emt 0:00:00]} e6 {[%emt 0:00:19]} 3. e3 {[%emt 0:00:07]} c5 {[%emt 0:00:45]} 4. c4 {[%emt 0:00:18]} cxd4 {[%emt 0:00:35]} 5. exd4 {[%emt 0:00:05]} d5 {[%emt 0:00:42]} 6. Nc3 {[%emt 0:00:05]} b6 {[%emt 0:01:08]} 7. cxd5 {[%emt 0:03:03]} Nxd5 {[%emt 0:00:39]} 8. Ne5 {[%emt 0:00:14]} Bd7 {[%emt 0:38:50]} 9. Qh5 {[%emt 0:05:44]} g6 {[%emt 0:05:10]} 10. Qf3 {[%emt 0:02:42]} Qf6 {[%emt 0:03:24]} 11. Nxd5 {[%emt 0:00:10]} Qxf3 {[%emt 0:00:04]} 12. Nc7+ {[%emt 0:00:12]} Kd8 {[%emt 0:00:11]} 13. Nxe6+ {[%emt 0:00:59]} Bxe6 {[%emt 0:00:45]} 14. Nxf3 {[%emt 0:00:05]} Bb4+ {[%emt 0:02:03]} 15. Bd2 {[%emt 0:00:06]} Nc6 {[%emt 0:03:45]} 16. Bb5 {[%emt 0:03:08]} Bxd2+ {[%emt 0:00:17]} 17. Kxd2 {[%emt 0:00:10]} Bd5 {[%emt 0:01:01]} 18. Bxc6 {[%emt 0:00:52]} Bxc6 {[%emt 0:00:02]} 19. Ne5 {[%emt 0:00:02]} Bd5 {[%emt 0:00:18]} 20. f3 {[%emt 0:00:19]} Ke7 {[%emt 0:01:29]} 21. Rhe1 {[%emt 0:00:21]} Kd6 {[%emt 0:00:09]} 22. b3 {[%emt 0:00:51]} f6 {[%emt 0:05:45]} 23. Ng4 {[%emt 0:00:17]} Rhf8 {[%emt 0:01:09]} 24. Rac1 {[%emt 0:01:50]} a5 {[%emt 0:01:20]} 25. Ne3 {[%emt 0:01:19]} a4 {[%emt 0:01:48]} 26. Nc4+ {[%emt 0:00:44]} Bxc4 {[%emt 0:00:17]} 27. bxc4 {[%emt 0:00:06]} Rac8 {[%emt 0:00:50]} 28. Kd3 {[%emt 0:00:34]} Rc6 {[%emt 0:01:24]} 29. d5 {[%emt 0:00:12]} Rcc8 {[%emt 0:01:05]} 30. Re6+ {[%emt 0:00:14]} Kc7 {[%emt 0:00:16]} 31. Rb1 {[%emt 0:00:11]} Rb8 {[%emt 0:00:14]} 32. Rc6+ {[%emt 0:00:08]} 1-0

[Event "EYCC Girls-U18 2019"]
[Site "Bratislava"]
[Date "2019.08.04"]
[Round "3.15"]
[White "Stroganova, Karina"]
[Black "Nestorovic, Katarina"]
[Result "1/2-1/2"]
[ECO "A46"]
[WhiteElo "1875"]
[BlackElo "2179"]
[Annotator "NA"]
[PlyCount "118"]
[EventDate "2019.08.02"]
[EventType "swiss"]
[EventCountry "SVK"]
[SourceTitle "playchess.com"]
[Source "ChessBase"]
[SourceQuality "1"]
[TimeControl "40/5400+30:1800+30"]

1. d4 {[%emt 0:00:00]} Nf6 {[%emt 0:00:00]} 2. Nf3 {[%emt 0:00:00]} e6 {[%emt 0:00:00]} 3. Bf4 {[%emt 0:00:11]} c5 {[%emt 0:00:21]} 4. e3 {[%emt 0:00:50]} Nc6 {[%emt 0:00:20]} 5. c3 {[%emt 0:00:36]} d5 {[%emt 0:00:07]} 6. Bd3 {[%emt 0:00:33]} Bd6 {[%emt 0:00:27]} 7. Bg3 {[%emt 0:00:17]} O-O {[%emt 0:01:47]} 8. Nbd2 {[%emt 0:00:25]} b6 {[%emt 0:00:34]} 9. Ne5 {[%emt 0:03:07]} Bb7 {[%emt 0:02:53]} 10. f4 {[%emt 0:02:57]} Ne7 {[%emt 0:11:40]} 11. Qf3 {[%emt 0:08:08]} Nf5 {[%emt 0:07:10]} 12. Bf2 {[%emt 0:00:59]} Nd7 {[%emt 0:18:21]} 13. g4 {[%emt 0:09:00]} Ne7 {[%emt 0:01:25]} 14. Qh3 {[%emt 0:13:33]} g6 {[%emt 0:12:15]} 15. Ndf3 {[%emt 0:10:36]} f6 {[%emt 0:02:50]} 16. O-O-O {[%emt 0:16:11]} c4 {[%emt 0:04:11]} 17. Bc2 {[%emt 0:00:32]} b5 {[%emt 0:00:46]} 18. Nxd7 {[%emt 0:13:26]} Qxd7 {[%emt 0:00:28]} 19. f5 {[%emt 0:00:37]} exf5 {[%emt 0:08:25]} 20. gxf5 {[%emt 0:00:14]} Bc8 {[%emt 0:00:43]} 21. Nh4 {[%emt 0:02:24]} g5 {[%emt 0:01:11]} 22. Rhg1 {[%emt 0:00:13]} Kh8 {[%emt 0:01:13]} 23. Nf3 {[%emt 0:03:32]} Nxf5 {[%emt 0:02:52]} 24. Nxg5 {[%emt 0:02:08]} fxg5 {[%emt 0:04:08]} 25. Rxg5 {[%emt 0:00:05]} Nxd4 {[%emt 0:01:13]} 26. Qxd7 {[%emt 0:04:31]} Ne2+ {[%emt 0:03:46]} 27. Kd2 {[%emt 0:00:21]} Bxd7 {[%emt 0:00:18]} 28. Kxe2 {[%emt 0:00:23]} Be7 {[%emt 0:02:38]} 29. Rgg1 {[%emt 0:00:56]} Bf5 {[%emt 0:03:11]} 30. Bxf5 {[%emt 0:01:05]} Rxf5 {[%emt 0:00:04]} 31. Rdf1 {[%emt 0:00:12]} Raf8 {[%emt 0:02:43]} 32. Rg2 {[%emt 0:05:34]} Bh4 {[%emt 0:02:53]} 33. e4 {[%emt 0:01:17]} Rxf2+ {[%emt 0:00:18]} 34. Rgxf2 {[%emt 0:00:06]} Bxf2 {[%emt 0:00:07]} 35. Rxf2 {[%emt 0:00:03]} Re8 {[%emt 0:01:15]} 36. Rf5 {[%emt 0:01:19]} Rxe4+ {[%emt 0:01:40]} 37. Kf3 {[%emt 0:00:39]} Re7 {[%emt 0:00:46]} 38. Rxd5 {[%emt 0:00:09]} Rb7 {[%emt 0:00:31]} 39. Rg5 {[%emt 0:00:59]} a6 {[%emt 0:01:48]} 40. h4 {[%emt 0:00:00]} Rb6 {[%emt 0:00:00]} 41. h5 {[%emt 0:08:14]} Rf6+ {[%emt 0:04:36]} 42. Ke3 {[%emt 0:00:20]} Re6+ {[%emt 0:03:00]} 43. Kd4 {[%emt 0:02:40]} Re2 {[%emt 0:01:58]} 44. b3 {[%emt 0:02:59]} Rxa2 {[%emt 0:03:47]} 45. bxc4 {[%emt 0:01:12]} Ra4 {[%emt 0:02:26]} 46. Rc5 {[%emt 0:00:48]} Kg7 {[%emt 0:02:53]} 47. Kd5 {[%emt 0:01:58]} bxc4 {[%emt 0:00:53]} 48. Rc6 {[%emt 0:01:06]} Ra5+ {[%emt 0:06:42]} 49. Kxc4 {[%emt 0:00:20]} Rxh5 {[%emt 0:00:06]} 50. Rxa6 {[%emt 0:00:08]} Kf7 {[%emt 0:05:16]} 51. Kb4 {[%emt 0:01:13]} Ke7 {[%emt 0:02:24]} 52. c4 {[%emt 0:00:07]} Kd7 {[%emt 0:01:50]} 53. c5 {[%emt 0:00:33]} Rg5 {[%emt 0:01:45]} 54. Kb5 {[%emt 0:01:05]} Rg6 {[%emt 0:01:30]} 55. Ra7+ {[%emt 0:00:33]} Kc8 {[%emt 0:00:10]} 56. Rxh7 {[%emt 0:01:18]} Rf6 {[%emt 0:00:06]} 57. c6 {[%emt 0:00:16]} Rf1 {[%emt 0:00:18]} 58. Rh5 {[%emt 0:01:56]} Rb1+ {[%emt 0:00:38]} 59. Kc5 {[%emt 0:00:11]} Kc7 {[%emt 0:00:57]} 1/2-1/2

[Event "EYCC Girls-U18 2019"]
[Site "Bratislava"]
[Date "2019.08.04"]
[Round "3.16"]
[White "Ziegenfuss, Antonia"]
[Black "Poliakova, Varvara"]
[Result "1-0"]
[ECO "A41"]
[WhiteElo "2063"]
[BlackElo "1872"]
[Annotator "NA"]
[PlyCount "55"]
[EventDate "2019.08.02"]
[EventType "swiss"]
[EventCountry "SVK"]
[SourceTitle "playchess.com"]
[Source "ChessBase"]
[SourceQuality "1"]
[TimeControl "40/5400+30:1800+30"]

1. d4 {[%emt 0:00:00]} d6 {[%emt 0:00:00]} 2. c4 {[%emt 0:00:00]} e5 {[%emt 0:00:00]} 3. Nc3 {[%emt 0:00:00]} Nc6 {[%emt 0:01:11]} 4. Nf3 {[%emt 0:03:21]} Bg4 {[%emt 0:02:24]} 5. d5 {[%emt 0:02:01]} Nb8 {[%emt 0:01:54]} 6. e4 {[%emt 0:02:33]} g6 {[%emt 0:02:48]} 7. h3 {[%emt 0:02:15]} Bd7 {[%emt 0:05:32]} 8. Bd3 {[%emt 0:01:26]} Bg7 {[%emt 0:00:05]} 9. O-O {[%emt 0:01:49]} Nf6 {[%emt 0:00:43]} 10. Be3 {[%emt 0:04:03]} O-O {[%emt 0:01:04]} 11. Qd2 {[%emt 0:01:59]} Re8 {[%emt 0:04:46]} 12. Nh2 {[%emt 0:04:59]} Na6 {[%emt 0:06:52]} 13. Rae1 {[%emt 0:02:30]} Nc5 {[%emt 0:03:00]} 14. Bc2 {[%emt 0:00:33]} a5 {[%emt 0:06:23]} 15. f4 {[%emt 0:13:07]} Nh5 {[%emt 0:10:09]} 16. f5 {[%emt 0:05:04]} Kh8 {[%emt 0:06:25]} 17. Ng4 {[%emt 0:13:28]} Bc8 {[%emt 0:14:26]} 18. Bh6 {[%emt 0:05:53]} Nd7 {[%emt 0:06:53]} 19. Bxg7+ {[%emt 0:05:01]} Kxg7 {[%emt 0:01:50]} 20. Qh6+ {[%emt 0:00:31]} Kg8 {[%emt 0:00:38]} 21. fxg6 {[%emt 0:03:24]} fxg6 {[%emt 0:01:51]} 22. Rf7 {[%emt 0:02:59]} Ndf6 {[%emt 0:12:29]} 23. Nxf6+ {[%emt 0:02:05]} Kxf7 {[%emt 0:00:04]} 24. Nxh5 {[%emt 0:00:54]} gxh5 {[%emt 0:01:28]} 25. Qxh7+ {[%emt 0:00:08]} Kf6 {[%emt 0:00:05]} 26. Rf1+ {[%emt 0:01:30]} Kg5 {[%emt 0:00:03]} 27. Qg7+ {[%emt 0:00:12]} Kh4 {[%emt 0:00:03]} 28. Kh2 {[%emt 0:00:12]} 1-0

[Event "EYCC Girls-U18 2019"]
[Site "Bratislava"]
[Date "2019.08.04"]
[Round "3.17"]
[White "Grigorieva, Yulia"]
[Black "Balan, Briana-Cleopatra"]
[Result "1-0"]
[ECO "A06"]
[WhiteElo "2096"]
[BlackElo "1869"]
[Annotator "NA"]
[PlyCount "82"]
[EventDate "2019.08.02"]
[EventType "swiss"]
[EventCountry "SVK"]
[SourceTitle "playchess.com"]
[Source "ChessBase"]
[SourceQuality "1"]
[TimeControl "40/5400+30:1800+30"]

1. Nf3 {[%emt 0:00:00]} d5 {[%emt 0:00:00]} 2. g3 {[%emt 0:00:00]} Bg4 {[%emt 0:04:21]} 3. Bg2 {[%emt 0:03:05]} Nd7 {[%emt 0:04:43]} 4. h3 {[%emt 0:11:44]} Bxf3 {[%emt 0:04:43]} 5. exf3 {[%emt 0:03:56]} Ngf6 {[%emt 0:11:17]} 6. f4 {[%emt 0:01:48]} e5 {[%emt 0:03:41]} 7. fxe5 {[%emt 0:06:49]} Nxe5 {[%emt 0:00:07]} 8. O-O {[%emt 0:00:52]} Be7 {[%emt 0:02:03]} 9. Qe2 {[%emt 0:03:32]} Qd6 {[%emt 0:04:35]} 10. b3 {[%emt 0:11:42]} O-O {[%emt 0:08:25]} 11. Re1 {[%emt 0:01:22]} Ng6 {[%emt 0:03:53]} 12. Ba3 {[%emt 0:02:56]} c5 {[%emt 0:01:25]} 13. d4 {[%emt 0:01:48]} Qc7 {[%emt 0:02:54]} 14. Nc3 {[%emt 0:09:23]} Qa5 {[%emt 0:05:37]} 15. Bb2 {[%emt 0:00:29]} cxd4 {[%emt 0:05:36]} 16. Nb5 {[%emt 0:01:01]} Bb4 {[%emt 0:02:46]} 17. Red1 {[%emt 0:02:32]} Rfe8 {[%emt 0:02:47]} 18. Qf1 {[%emt 0:01:48]} Ne4 {[%emt 0:07:50]} 19. Nxd4 {[%emt 0:04:42]} Bc5 {[%emt 0:05:57]} 20. a3 {[%emt 0:04:07]} Qc7 {[%emt 0:01:28]} 21. Rac1 {[%emt 0:02:47]} Rac8 {[%emt 0:04:31]} 22. Re1 {[%emt 0:05:00]} Qb6 {[%emt 0:03:08]} 23. Rcd1 {[%emt 0:02:22]} Qf6 {[%emt 0:03:47]} 24. c4 {[%emt 0:01:11]} Nd6 {[%emt 0:04:17]} 25. Bxd5 {[%emt 0:03:08]} Ne7 {[%emt 0:01:58]} 26. Bg2 {[%emt 0:03:12]} Nc6 {[%emt 0:00:35]} 27. Nxc6 {[%emt 0:02:38]} Qxb2 {[%emt 0:00:09]} 28. b4 {[%emt 0:06:39]} Rxe1 {[%emt 0:00:44]} 29. Rxe1 {[%emt 0:00:49]} Bxf2+ {[%emt 0:00:31]} 30. Qxf2 {[%emt 0:00:38]} Qxf2+ {[%emt 0:00:06]} 31. Kxf2 {[%emt 0:00:02]} bxc6 {[%emt 0:00:12]} 32. c5 {[%emt 0:01:46]} Nc4 {[%emt 0:00:44]} 33. Bxc6 {[%emt 0:00:36]} Kf8 {[%emt 0:01:05]} 34. Bb5 {[%emt 0:01:55]} Nxa3 {[%emt 0:00:30]} 35. Bd3 {[%emt 0:00:04]} a5 {[%emt 0:00:24]} 36. bxa5 {[%emt 0:00:47]} Rxc5 {[%emt 0:00:08]} 37. a6 {[%emt 0:00:32]} Nb5 {[%emt 0:00:52]} 38. Rb1 {[%emt 0:00:29]} Nc7 {[%emt 0:00:33]} 39. Rb7 {[%emt 0:00:40]} Ke7 {[%emt 0:00:34]} 40. a7 {[%emt 0:00:00]} Kd6 {[%emt 0:00:00]} 41. Rxc7 {[%emt 0:00:34]} Kd5 1-0

[Event "EYCC Girls-U18 2019"]
[Site "Bratislava"]
[Date "2019.08.04"]
[Round "3.18"]
[White "Kostecka, Marika"]
[Black "Palma, Maria"]
[Result "1-0"]
[ECO "B56"]
[WhiteElo "1924"]
[BlackElo "2137"]
[Annotator "NA"]
[PlyCount "85"]
[EventDate "2019.08.02"]
[EventType "swiss"]
[EventCountry "SVK"]
[SourceTitle "playchess.com"]
[Source "ChessBase"]
[SourceQuality "1"]
[TimeControl "40/5400+30:1800+30"]

1. e4 {[%emt 0:00:00]} c5 {[%emt 0:00:00]} 2. Nf3 {[%emt 0:00:00]} Nc6 {[%emt 0:00:00]} 3. d4 {[%emt 0:00:00]} cxd4 {[%emt 0:00:00]} 4. Nxd4 {[%emt 0:00:00]} Nf6 {[%emt 0:00:00]} 5. Nc3 {[%emt 0:00:03]} d6 {[%emt 0:00:08]} 6. Be3 {[%emt 0:00:27]} Ng4 {[%emt 0:01:14]} 7. Bc1 {[%emt 0:02:41]} Qb6 {[%emt 0:05:53]} 8. Bb5 {[%emt 0:08:37]} Bd7 {[%emt 0:13:54]} 9. O-O {[%emt 0:06:02]} Qxd4 {[%emt 0:07:49]} 10. Bxc6 {[%emt 0:00:08]} Qxd1 {[%emt 0:00:46]} 11. Bxd7+ {[%emt 0:00:06]} Kxd7 {[%emt 0:00:08]} 12. Rxd1 {[%emt 0:00:10]} g6 {[%emt 0:04:31]} 13. f3 {[%emt 0:11:44]} Ne5 {[%emt 0:01:32]} 14. f4 {[%emt 0:07:47]} Nc4 {[%emt 0:02:11]} 15. b3 {[%emt 0:02:57]} Bg7 {[%emt 0:03:48]} 16. Rd3 {[%emt 0:00:15]} Na5 {[%emt 0:06:19]} 17. Ba3 {[%emt 0:05:52]} Rhc8 {[%emt 0:06:09]} 18. e5 {[%emt 0:06:20]} Ke8 {[%emt 0:18:31]} 19. Rad1 {[%emt 0:02:17]} dxe5 {[%emt 0:02:26]} 20. Rd7 {[%emt 0:01:29]} Nc6 {[%emt 0:08:06]} 21. Rxb7 {[%emt 0:03:51]} Rab8 {[%emt 0:02:34]} 22. Rdd7 {[%emt 0:05:31]} Rxb7 {[%emt 0:01:51]} 23. Rxb7 {[%emt 0:00:07]} Kf8 {[%emt 0:04:52]} 24. Nd5 {[%emt 0:00:50]} e4 {[%emt 0:06:40]} 25. Nxe7 {[%emt 0:01:11]} Bd4+ {[%emt 0:00:01]} 26. Kf1 {[%emt 0:01:28]} Nxe7 {[%emt 0:00:08]} 27. Rxe7 {[%emt 0:03:46]} Bc5 {[%emt 0:01:13]} 28. Bxc5 {[%emt 0:00:17]} Rxc5 {[%emt 0:00:02]} 29. Rxa7 {[%emt 0:00:11]} Rxc2 {[%emt 0:00:08]} 30. a4 {[%emt 0:00:31]} e3 {[%emt 0:00:45]} 31. a5 {[%emt 0:01:04]} Rf2+ {[%emt 0:00:45]} 32. Ke1 {[%emt 0:01:32]} Rxg2 {[%emt 0:00:38]} 33. b4 {[%emt 0:00:48]} Rxh2 {[%emt 0:01:14]} 34. b5 {[%emt 0:00:11]} h5 {[%emt 0:01:06]} 35. b6 {[%emt 0:01:31]} Rb2 {[%emt 0:00:27]} 36. Rb7 {[%emt 0:06:06]} h4 {[%emt 0:00:48]} 37. a6 {[%emt 0:00:06]} h3 {[%emt 0:01:05]} 38. a7 {[%emt 0:15:43]} Ra2 {[%emt 0:00:01]} 39. Rb8+ {[%emt 0:00:21]} Kg7 {[%emt 0:00:07]} 40. Rg8+ {[%emt 0:00:00]} Kxg8 {[%emt 0:00:00]} 41. b7 {[%emt 0:00:28]} h2 {[%emt 0:08:10]} 42. a8=Q+ {[%emt 0:00:39]} Kh7 {[%emt 0:00:38]} 43. b8=Q {[%emt 0:00:14]} 1-0

[Event "EYCC Girls-U18 2019"]
[Site "Bratislava"]
[Date "2019.08.04"]
[Round "3.19"]
[White "Chrysogelou, Athanasia-Panagiota"]
[Black "Rudzinska, Michalina"]
[Result "1-0"]
[ECO "A71"]
[WhiteElo "1770"]
[BlackElo "2143"]
[Annotator "NA"]
[PlyCount "71"]
[EventDate "2019.08.02"]
[EventType "swiss"]
[EventCountry "SVK"]
[SourceTitle "playchess.com"]
[Source "ChessBase"]
[SourceQuality "1"]
[TimeControl "40/5400+30:1800+30"]

1. d4 {[%emt 0:00:00]} Nf6 {[%emt 0:00:00]} 2. c4 {[%emt 0:00:00]} e6 {[%emt 0:00:00]} 3. Nf3 {[%emt 0:00:04]} c5 {[%emt 0:00:00]} 4. d5 {[%emt 0:00:23]} exd5 {[%emt 0:00:08]} 5. cxd5 {[%emt 0:00:17]} d6 {[%emt 0:00:14]} 6. Nc3 {[%emt 0:00:44]} g6 {[%emt 0:00:16]} 7. e4 {[%emt 0:00:58]} Bg7 {[%emt 0:00:15]} 8. Bg5 {[%emt 0:00:36]} O-O {[%emt 0:01:10]} 9. Nd2 {[%emt 0:02:52]} h6 {[%emt 0:02:19]} 10. Bf4 {[%emt 0:03:48]} a6 {[%emt 0:08:22]} 11. a4 {[%emt 0:02:57]} Qe7 {[%emt 0:01:17]} 12. Be2 {[%emt 0:03:20]} Nbd7 {[%emt 0:02:03]} 13. O-O {[%emt 0:02:25]} Ne8 {[%emt 0:01:23]} 14. Nc4 {[%emt 0:12:11]} Rb8 {[%emt 0:05:03]} 15. Qc2 {[%emt 0:05:14]} b6 {[%emt 0:05:08]} 16. Rae1 {[%emt 0:05:39]} Kh7 {[%emt 0:02:53]} 17. Bg3 {[%emt 0:05:20]} Ne5 {[%emt 0:03:02]} 18. f4 {[%emt 0:04:12]} Nxc4 {[%emt 0:00:15]} 19. Bxc4 {[%emt 0:00:06]} b5 {[%emt 0:19:19]} 20. axb5 {[%emt 0:03:12]} axb5 {[%emt 0:00:06]} 21. Nxb5 {[%emt 0:05:02]} Ba6 {[%emt 0:05:00]} 22. Nxd6 {[%emt 0:09:38]} Rxb2 {[%emt 0:00:28]} 23. Qd3 {[%emt 0:00:56]} Nxd6 {[%emt 0:00:29]} 24. Bxa6 {[%emt 0:00:17]} Rfb8 {[%emt 0:02:29]} 25. e5 {[%emt 0:02:44]} R8b3 {[%emt 0:05:05]} 26. Qd1 {[%emt 0:05:35]} c4 {[%emt 0:09:15]} 27. Bf2 {[%emt 0:02:47]} c3 {[%emt 0:06:09]} 28. exd6 {[%emt 0:02:02]} Qxd6 {[%emt 0:00:06]} 29. Bd3 {[%emt 0:00:58]} Ra3 {[%emt 0:10:54]} 30. f5 {[%emt 0:05:26]} Rd2 {[%emt 0:00:53]} 31. fxg6+ {[%emt 0:01:18]} fxg6 {[%emt 0:00:10]} 32. Qf3 {[%emt 0:05:25]} c2 {[%emt 0:01:12]} 33. Bxg6+ {[%emt 0:03:04]} Qxg6 {[%emt 0:01:44]} 34. Qxa3 {[%emt 0:00:07]} Rxd5 {[%emt 0:02:51]} 35. Rc1 {[%emt 0:02:24]} Rb5 {[%emt 0:01:18]} 36. Qa4 {[%emt 0:00:56]} 1-0